Workbook

Sheet Auctions
A1: Let's consider a new note auction. For example, the 1 5/8 % August 2029 note. | H1: Announcement of auction: | K1: This announcement was made at 8:30 am on Wednesday, July 31, 2019.
B2: It announces that the US Treasury will conduct a sealed-bid single price auction on Wednesday August 7 at 1:00 pm Eastern time.
B3: The New York Federal Reserve Bank will serve as agent to conduct the auction on behalf of the Treasury.
B4: The Treasury announces that they are offering $27 billion of the new August 15, 2029 note. Note the standard terms for 10-year Treasury notes.
A6: Bidders place sealed bids with the NYFed. A bid may be non-competitive or competitive. If it is non-competitive, it just specifies a par amount. For example, I place a non-competitive bid through my TreasuryDirect account for $10,000 par.
A7: Competitive bids specify a par amount and a (bond-equivalent) yield. Notice that the new note's coupon rate is not set prior to the auction. It well be set in increments of 1/8 of 1% at the highest level that makes the bond sell at par or lower.
A9: Note that at bid at a lower yield is more competitive, since this will net more money per bond than higher yield bids.
A10: As you can see bids must be in increments of one-tenth of a basis point (0.001%).
A12: SOMA refers to the System Open Market Account at the US Federal Reserve. | H12: The Treasury will allot the Fed whatever it wants at the final auction value, and this will increase the size of the issue.
A14: Here is the Treasury's announcement on completion of its auction:
A15: https://www.treasurydirect.gov/instit/annceresult/press/preanre/2019/R_20190807_1.pdf
A17: This outcome is consistent with the following bids:
B19: Par Amount | C19: Yield Bid
B20: 0.0275 billion | C20: Noncompetitive
B21: 1.57 billion | C21: 1.625%
B22: 1.1 billion | C22: 1.605%
B23: 1 billion | C23: 1.670%
B24: 2.6 billion | C24: 1.640%
B25: 4 billion | C25: 1.800%
B26: 2.6 billion | C26: 1.575%
B27: 2 billion | C27: 1.670%
B28: 2.8 billion | C28: 1.630%
B29: 1.4 billion | C29: 1.580%
B30: 0.6 billion | C30: 1.590%
B31: 1 billion | C31: 1.510%
B32: 1.2 billion | C32: 1.765%
B33: 0.9 billion | C33: 1.600%
B34: 0.3 billion | C34: 1.550%
B35: 2 billion | C35: 1.670%
B36: 1 billion | C36: 1.600%
B37: 5 billion | C37: 1.860%
B38: 1.5725 billion | C38: 1.580%
B39: 7 billion | C39: 1.720%
B40: 3 billion | C40: 1.670%
B41: 6 billion | C41: 1.800%
B42: 2.2 billion | C42: 1.610%
B43: 4.5 billion | C43: 1.765%
B44: 1.1 billion | C44: 1.580%
B45: 2.2 billion | C45: 1.550%
A48: So the NYFed's software will subtract the non-competitive bids from the supply, and then rank the bids from lowest to highest yield (combining all bids at the same yield):
A49: Total avaiable supply: | D49: 27
B50: Yield | C50: $ Amt (billions) | D50: Running Total Demand
B51: 1.510% | C51: 1 | D51: =C51 -> 1
B52: 1.550% | C52: 2.5 | D52: =D51+C52 -> 3.5
B53: 1.575% | C53: 2.6 | D53: =D52+C53 -> 6.1
B54: 1.580% | C54: =1.1+1.5725+1.4 -> 4.0725 | D54: 10.1725
B55: 1.590% | C55: 0.6 | D55: 10.7725
B56: 1.600% | C56: 1.9 | D56: 12.6725
B57: 1.605% | C57: 1.1 | D57: 13.7725
B58: 1.610% | C58: 2.2 | D58: 15.9725
B59: 1.625% | C59: 1.57 | D59: 17.5425
B60: 1.630% | C60: 2.8 | D60: 20.3425
B61: 1.640% | C61: 2.6 | D61: 22.9425
B62: 1.670% | C62: =1+2+2+3 -> 8 | D62: 30.9425 | E62: <---- This is where we have to stop to meet the supply. So this will be the winning bid. All buyers at the auction will make this yield.
B63: 1.720% | C63: 7 | D63: 37.9425
B64: 1.765% | C64: 5.7 | D64: 43.6425
B65: 1.800% | C65: 10 | D65: 53.6425
B66: 1.860% | C66: 5 | D66: 58.6425
B68: Price setting: | C68: Treasury sets the coupon at 1/8% increments so that the note sells as close to par as possible -- from below.
C69: This means that the coupon has to be less than or equal to the winning bid. Nearest 1/8: | J69: 1.625%
A71: Treasury's price determination (note it is not precise):
B72: T (Yrs): | C72: 0.5 | D72: 1 | E72: 1.5 | F72: 2 | G72: 2.5 | H72: 3 | I72: 3.5 | J72: 4 | K72: 4.5 | L72: 5 | M72: 5.5 | N72: 6 | O72: 6.5 | P72: 7 | Q72: 7.5 | R72: 8 | S72: 8.5 | T72: 9 | U72: 9.5 | V72: 10
B73: Cash Flow: | C73: =50*$J$69 -> 0.8125 | D73: =50*$J$69 -> 0.8125 | E73: 0.8125 | F73: 0.8125 | G73: 0.8125 | H73: 0.8125 | I73: 0.8125 | J73: 0.8125 | K73: 0.8125 | L73: 0.8125 | M73: 0.8125 | N73: 0.8125 | O73: 0.8125 | P73: 0.8125 | Q73: 0.8125 | R73: 0.8125 | S73: 0.8125 | T73: 0.8125 | U73: 0.8125 | V73: =100*(1+0.5*$J$69) -> 100.8125
B74: df (@ytm): | C74: =1/(1+$B$62/2)^(2*C72) -> 0.9917191451 | D74: =1/(1+$B$62/2)^(2*D72) -> 0.9835068628 | E74: 0.9753625852 | F74: 0.9672857492 | G74: 0.9592757963 | H74: 0.9513321727 | I74: 0.9434543291 | J74: 0.9356417207 | K74: 0.9278938074 | L74: 0.9202100534 | M74: 0.9125899276 | N74: 0.9050329028 | O74: 0.8975384567 | P74: 0.890106071 | Q74: 0.8827352318 | R74: 0.8754254295 | S74: 0.8681761586 | T74: 0.8609869178 | U74: 0.8538572101 | V74: 0.8467865425
B75: PV: | C75: =C73*C74 -> 0.8057718054 | D75: =D73*D74 -> 0.7990993261 | E75: 0.7924821005 | F75: 0.7859196713 | G75: 0.7794115845 | H75: 0.7729573903 | I75: 0.7665566424 | J75: 0.7602088981 | K75: 0.7539137185 | L75: 0.7476706684 | M75: 0.7414793161 | N75: 0.7353392335 | O75: 0.7292499961 | P75: 0.7232111827 | Q75: 0.7172223759 | R75: 0.7112831615 | S75: 0.7053931288 | T75: 0.6995518707 | U75: 0.6937589832 | V75: 85.36666831
B76: =SUM(C75:V75) -> 99.587149
B78: continuously compounded ytm: | D78: exp(y) = (1+r/2)^2 | F78: (1+r/2)^2 = | G78: =(1+B62/2)^2 -> 1.016769723 | H78: ==> equivalent continuously compounded yield to maturity: | M78: =LN(G78) -> 0.01663066321
B79: The Treasury sells roughly 27 billion par at this value, raising: | G79: =27.000345*B76/100 -> 26.8888739 | H79: billion dollars from this auction.
B80: Auction allocation:
C81: All noncompetitive bids are filled at the auction price.
C82: All competitive bids at yields less than 1.67% receive the full amount of the bid.
C83: All competitive bids at yields greater than 1.67% receive no notes.
C84: Bids at 1.67% are allocated on a pro-rata basis. There are 8 billion par to buy and 4 billion available. So the bids at this quote are filled at a rate of 1/2.
C85: So, for example, the 3 billion bid at 1.67% receives 1.5 billion par value.
C88: Note that a single bidder (e.g., Morgan Stanley) may submit multiple bids, but may not receive more than 9.45 billion par at auction. (This cap is to prevent collusion, or a bidding ring.)

Sheet Repo Fin
A1: Example of Repo financing of an on-the-run Treasury Note.
A2: Today: | B2: September 2 2020 (Wednesday) | E2: Settlement: | F2: 2020-09-03
B3: Note: | C3: 2030-08-15 | D3: 0.625% | F3: Acrued Interest: | H3: =(F2-N3)/(N4-N3)*R3 -> 0.03226902174 | M3: Dated Date: | N3: 2020-08-15 | O3: Semi-annual coupon (per 100 par): | R3: =50*D3 -> 0.3125
C4: Bid | D4: Ask | M4: Next Coupon: | N4: 2021-02-15
B5: Price: | C5: 99-1+ | D5: 99-2
B6: Cash Quotes: | C6: =99+1.5/32+H3 -> 99.07914402 | D6: =99+2/32+H3 -> 99.09476902
A8: We put ourselves in the position of a hedge fund, and in this example we are going to purchase this note using repo financing. | J8: Our hedge fund has a 9% cost of capital on trades.
A9: As soon as we buy the note from the dealer we ``sell'' the note to a repo dealer with the agreement to buy it back at a specified future date plus interest. The interest that we pay is the repo rate --applied daily on a 360-day basis.
B10: Of course, effectively, this amounts to using the note as collateral for a loan. The repo dealer has posession of the note so if we default the dealer can take full ownership of the note. (Repo transactions supersede national bankruptcy laws.)
A11: In our first example we will assume that there is no haircut on Treasury repo collateral, so that we can finance the entire purchase amount using repo finance.
A13: We buy $100 million par value of this note, finance with repo and sell it in 2 months.
A14: We will ignore the need to mark the repo collateral to market every day, and assume that we roll over our repo every business day until maturity. Repo over a weekend has 3 days of interest, and over a 3-day weekend, 4 days of interest.
A16: Par: | B16: 100,000,000.00
A17: Market Value: | B17: =B16*D6/100 -> 99,094,769.02
A18: Repo: | B18: =B17 -> 99,094,769.02
A20: The repo rate (to borrow) is 12 basis points. | D20: 0.0012 | G20: Bid | H20: Ask | M20: Settlement: | N20: 2020-11-03
A21: We sell the position on November 2, 2020 (Monday), when the Note has quotes: | G21: 98-31 | H21: 99-00 | I21: Accrued Interest: | K21: =(N20-N3)/(N4-N3)*R3 -> 0.1358695652
E22: Cash Quotes: | G22: =98+31/32+K21 -> 99.10461957 | H22: =99+K21 -> 99.13586957
A23: So when we sell our position we receive: | D23: =G22*B16/100 -> 99,104,619.57 | E23: (on the settlement date)
A25: So from holding the note for 2 months we have P&L: | E25: =D23-B17 -> 9,850.54
A26: Financing costs:
B27: Number of days: | D27: =N20-F2 -> 61
B28: repo rate: | D28: =D20 -> 0.0012
B29: Repo interest: | D29: =D28*(D27/360)*B17 -> 20,149.27
A31: Trade P&L: | E31: =E25-D29 -> -10,298.73
A34: Next, we consider the phenomenon trading on special in repo.
B35: This reflects the fact that there is a market to borrow and lend specific securities. Most securities, most of the time, are considered general collateral.
B36: And these are eligible for repo transactions in the tri-party repo market.
B37: But at times the demand to borrow a security may arise and make the security special.
B38: An example is when 3Com spun off Palm, but retained ownership. For example on March 2, 1999, 3Com had sold 23 million shares and retained 532 million shares of Palm (its subsidiary).
B39: 3Com was to spin off its holdings of Palm entirely in 1 year.
B40: And the market price of of Palm was $99 per share, and 3Com $81, with a market cap of $28 million.
B41: This situation seems inconsistent with the absence of arbitrage. The market says that Palm is worth: | I41: =532+23 -> 555 | J41: 99 | K41: =I41*J41 -> 54945 | L41: -- almost 55 billion.
F42: and that 3Com is worth: | I42: =K42/J42 -> 345.7 | J42: 81 | K42: 28000 | L42: -- roughly 28 billion.
F43: Yet, the value of 3Com's Palm stock is: | I43: 532 | K43: =I43*J41 -> 52668 | L43: which implies that the rest of 3Com is worth: | P43: =K42-K43 -> -24668 | Q43: minus 25 billion dollars.
B45: So the strategy is obvious: Buy 3Com and short Palm, and wait for convergence as the full spin off approaches.
B46: The demand to borrow Palm shares exceeded the supply, and Palm shares started trading special on repo. It traded with negative rebate rates of 30%. In 1999, the risk free rate was around 5%, so a trade that borrowed Palm shares, and sold them, and then deposited the
B47: proceeds from the sale with the securities lender earned repo interest of | G47: -0.3
B48: This explains why the Palm shares we so valuable. If you owned 1000 shares at $99 per share, you could lend them to a short seller and earn 30% on the cash that he gives you in exchange.
B50: This happens on a much smaller scale in Treasury markets as dealers come into the auction with large short positions (from the when-issued market), and they bid aggressively at the opening auction, often failing to cover their short exposure.
B51: Thus, there is heightened demand to borrow the note to keep the short position open.
B52: This has 2 consequences:
C53: 1. The note trades on special in repo
C54: 2. The note's price reflects the value of expected future repo specialness, and appears to be too high. This is the on-the-run premium.
A56: To continue with the above example, let's suppose that instead of being general collateral, the on-the-run 10-year note trades on special in repo for 200 basis points. This means that the effective repo rate is: | P56: general collateral rate: | R56: =D20 -> 0.0012
P57: --minus specialness | R57: 0.02
P58: = applied repo rate | R58: =R56-R57 -> -0.0188
A60: Let's look at the P&L if the note is trading on special of 200 bps over the holding period:
B62: Holding the note: | D62: =E25 -> 9,850.54
B63: Financing ``cost'': | D63: =R58*D27/360*B17 -> -315,671.89
B64: Total Trade P&L: | D64: =D62-D63 -> 325,522.44 | E64: So you see that owning a security that trades on special in repo is valuable.
A66: Next, we consider haircuts in repo.
A67: Suppose that conditions in the repo market are such that there is a 2% haircut on US Treasuries.
A68: Original example with 2% haircut:
B69: Purchase Note: | C69: =B17 -> 99,094,769.02
B70: Repo: | C70: =0.98*C69 -> 97,112,873.64
A71: Tie-up Firm Capital: | C71: =C69-C70 -> 1,981,895.38
A73: Trade P&L:
B74: Sell note: | C74: =D23 -> 99,104,619.57
B75: Repo interest: | C75: =D27*D28/360*C70 -> 19,746.28
B76: Cost of Capital: | C76: =(EXP(0.09*D27/365.25)-1)*C71 -> 30,014.48
B77: Trade P&L: | C77: =C74-C69-C75-C76 -> -39,910.22

Sheet LTCM Trade
A1: In the preceding spreadsheet, we took a speculative position in the on-the-run note. We use the repo market to finance the purchase, so as to avoid tying up valuable firm capital.
A2: We saw that when a security, such as the on-the-run note--is trading on special in repo it is cheaper to finance. This means that it has value in addition to the present value of its future cash flows.
A4: Here, we look at a convergence trade, such as discussed by Long Term Capital Management--the first super hedge fund.
A5: The premise is that the on-the-run note tends to trade at a premium to other securities for a period following the originating auction.
A6: A convergence trade attempts to profit from the expected convergence of the on-the-run note to related securities.
A8: Today: | B8: September 2 2020 (Wednesday) | E8: Settlement: | F8: 2020-09-03
B9: Note: | C9: 2030-08-15 | D9: 0.625% | F9: Acrued Interest: | H9: =(F8-N9)/(N10-N9)*R9 -> 0.03226902174 | M9: Dated Date: | N9: 2020-08-15 | O9: Semi-annual coupon (per 100 par): | R9: ='Repo Fin'!R3 -> 0.3125
C10: Bid | D10: Ask | M10: Next Coupon: | N10: 2021-02-15
B11: Price: | C11: 99-1+ | D11: 99-2
B12: Cash Quotes: | C12: =99+1.5/32+H9 -> 99.07914402 | D12: =99+2/32+H9 -> 99.09476902
A14: ytm: | B14: 0.007232744009 | C14: (cc)
A15: Date: | B15: 2021-02-16 | C15: 2021-08-16 | D15: 2022-02-15 | E15: 2022-08-15 | F15: 2023-02-15 | G15: 2023-08-15 | H15: 2024-02-15 | I15: 2024-08-15 | J15: 2025-02-18 | K15: 2025-08-15 | L15: 2026-02-17 | M15: 2026-08-17 | N15: 2027-02-16 | O15: 2027-08-16 | P15: 2028-02-15 | Q15: 2028-08-15 | R15: 2029-02-15 | S15: 2029-08-15 | T15: 2030-02-15 | U15: 2030-08-15
A16: T (Yrs): | B16: =(B15-$F$8)/365.25 -> 0.4544832307 | C16: =(C15-$F$8)/365.25 -> 0.9500342231 | D16: 1.451060917 | E16: 1.94661191 | F16: 2.450376454 | G16: 2.945927447 | H16: 3.449691992 | I16: 3.947980835 | J16: 4.459958932 | K16: 4.947296372 | L16: 5.456536619 | M16: 5.952087611 | N16: 6.453114305 | O16: 6.948665298 | P16: 7.449691992 | Q16: 7.947980835 | R16: 8.45174538 | S16: 8.947296372 | T16: 9.451060917 | U16: 9.94661191
A17: Cash Flow: | B17: =$R$9 -> 0.3125 | C17: =$R$9 -> 0.3125 | D17: 0.3125 | E17: 0.3125 | F17: 0.3125 | G17: 0.3125 | H17: 0.3125 | I17: 0.3125 | J17: 0.3125 | K17: 0.3125 | L17: 0.3125 | M17: 0.3125 | N17: 0.3125 | O17: 0.3125 | P17: 0.3125 | Q17: 0.3125 | R17: 0.3125 | S17: 0.3125 | T17: 0.3125 | U17: =100*(1+'Repo Fin'!D3/2) -> 100.3125
A18: df (@ytm): | B18: =EXP(-B16*$B$14) -> 0.9967182359 | C18: =EXP(-C16*$B$14) -> 0.9931521994 | D18: 0.9895597298 | E18: 0.9860193048 | F18: 0.9824331821 | G18: 0.9789182543 | H18: 0.9753579579 | I18: 0.9718490988 | J18: 0.9682569902 | K18: 0.9648500984 | L18: 0.9613028948 | M18: 0.9578635666 | N18: 0.9543987444 | O18: 0.9509841176 | P18: 0.94754418 | Q18: 0.9441353813 | R18: 0.9407015891 | S18: 0.9373359677 | T18: 0.9339269048 | U18: 0.9305855217
A19: PV: | B19: =B17*B18 -> 0.3114744487 | C19: =C17*C18 -> 0.3103600623 | D19: 0.3092374156 | E19: 0.3081310328 | F19: 0.3070103694 | G19: 0.3059119545 | H19: 0.3047993618 | I19: 0.3037028434 | J19: 0.3025803094 | K19: 0.3015156557 | L19: 0.3004071546 | M19: 0.2993323646 | N19: 0.2982496076 | O19: 0.2971825368 | P19: 0.2961075563 | Q19: 0.2950423066 | R19: 0.2939692466 | S19: 0.2929174899 | T19: 0.2918521577 | U19: 93.34936015
A20: =SUM(B19:U19) -> 99.079144
A21: Convergence Criterion: | C21: =(C12-A20)^2 -> 0.0000000000000000
A22: The ytm on this note (to a buyer) is 72.16 bps.
A24: The first off-the-run note: | C24: 0.00625 | D24: May 15 2030 | G24: Bid: | H24: 97-30+ | J24: AI: | K24: =(F8-O24)/(O25-O24)*R24 -> 0.1885190217 | N24: Dated Date: | O24: 2020-05-15 | P24: Semi-annual coupon: | R24: =50*C24 -> 0.3125
G25: Ask: | H25: 97-31+ | I25: Cash buy: | K25: =97+31.5/32+K24 -> 98.17289402 | N25: Next Int: | O25: 2020-11-15
A26: ytm: | B26: 0.008403901191 | C26: (cc)
A27: Date: | B27: 2020-11-16 | C27: 2021-05-17 | D27: 2021-11-15 | E27: 2022-05-16 | F27: 2022-11-15 | G27: 2023-05-15 | H27: 2023-11-15 | I27: 2024-05-15 | J27: 2024-11-15 | K27: 2025-05-15 | L27: 2025-11-17 | M27: 2026-05-15 | N27: 2026-11-16 | O27: 2027-05-17 | P27: 2027-11-15 | Q27: 2028-05-15 | R27: 2028-11-15 | S27: 2029-05-15 | T27: 2029-11-15 | U27: 2030-05-15
A28: T (Yrs): | B28: =(B27-$F$8)/365.25 -> 0.2026009582 | C28: 0.7008898015 | D28: 1.199178645 | E28: 1.697467488 | F28: 2.198494182 | G28: 2.694045175 | H28: 3.197809719 | I28: 3.696098563 | J28: 4.199863107 | K28: 4.6954141 | L28: 5.204654346 | M28: 5.694729637 | N28: 6.201232033 | O28: 6.699520876 | P28: 7.197809719 | Q28: 7.696098563 | R28: 8.199863107 | S28: 8.6954141 | T28: 9.199178645 | U28: 9.694729637
A29: Cash Flow: | B29: =$R$9 -> 0.3125 | C29: =$R$9 -> 0.3125 | D29: 0.3125 | E29: 0.3125 | F29: 0.3125 | G29: 0.3125 | H29: 0.3125 | I29: 0.3125 | J29: 0.3125 | K29: 0.3125 | L29: 0.3125 | M29: 0.3125 | N29: 0.3125 | O29: 0.3125 | P29: 0.3125 | Q29: 0.3125 | R29: 0.3125 | S29: 0.3125 | T29: 0.3125 | U29: =100*(1+C24/2) -> 100.3125
A30: df (@ytm): | B30: =EXP(-B28*$B$26) -> 0.9982988102 | C30: =EXP(-C28*$B$26) -> 0.9941271046 | D30: 0.9899728318 | E30: 0.9858359189 | F30: 0.9816937058 | G30: 0.9776138831 | H30: 0.9734838179 | I30: 0.9694158095 | J30: 0.9653203782 | K30: 0.9613086015 | L30: 0.9572033713 | M30: 0.9532691939 | N30: 0.9492201357 | O30: 0.9452535208 | P30: 0.9413034816 | Q30: 0.937369949 | R30: 0.9334098998 | S30: 0.9295307399 | T30: 0.9256038086 | U30: 0.9217570901
A31: PV: | B31: =B29*B30 -> 0.3119683782 | C31: =C29*C30 -> 0.3106647202 | D31: 0.3093665099 | E31: 0.3080737247 | F31: 0.306779283 | G31: 0.3055043385 | H31: 0.3042136931 | I31: 0.3029424405 | J31: 0.3016626182 | K31: 0.300408938 | L31: 0.2991260535 | M31: 0.2978966231 | N31: 0.2966312924 | O31: 0.2953917253 | P31: 0.294157338 | Q31: 0.292928109 | R31: 0.2916905937 | S31: 0.2904783562 | T31: 0.2892511902 | U31: 92.4637581
A32: =SUM(B31:U31) -> 98.172894
A33: Convergence Criterion: | C33: =(K25-A32)^2 -> 0.0000000000000000
A36: So we see the on-the-run premium.
C37: The yield to maturity on the on-the-run note is almost 12 basis points lower than the ytm on the first off the run note, despite their seimilarities.
A39: Let's consider a convergence trade where we short the on-the-run and go long the off-the-run. Hold until the November note auction.
A40: We'll assume that the ytm on the 2 notes will be the same on 11/16/2020.
A41: First, we have to buy the May 2030 note. Let's do his trade to a $50 million par value. | F41: We'll naively use the same par for both positions. In a few weeks we'll have a better strategy to hedge interest rate risk.
A42: Par note: | B42: 50,000,000
A43: Purchase May note: | C43: =B42*K25/100 -> 49,086,447.01
A44: Conditions in repo: | C44: general collateral rate (ask): | E44: 0.0015 | F44: Haircut: | G44: 0.01 | I44: Firm cost of capital (cc): | K44: 0.085
B45: Repo: | C45: =(1-G44)*C43 -> 48,595,582.54
B46: Firm Capital: | C46: =C43-C45 -> 490,864.47
A48: Close the position on 11/13/20 for settlement on: | D48: 2020-11-16 | E48: Number of days: | G48: =D48-F8 -> 74
A49: Financing:
B50: Repo interest: | C50: =G48/360*E44*C45 -> 14,983.64
B51: Cost of firm Cap: | C51: =C46*(EXP(G48/365.25*K44)-1) -> 8,526.42
B53: Receive coupon: | C53: =B42*C24 -> 312,500
D54: Tick to accommodate bid-ask spread: | G54: 0.000317 | H54: (and partial convergence)
A55: Sell the May note: | H55: Last cpn: | I55: 2020-11-15 | J55: Next Coupon: | K55: 2021-05-15 | M55: 2021-05-17 | N55: 2021-11-15 | O55: 2022-05-16 | P55: 2022-11-15 | Q55: 2023-05-15 | R55: 2023-11-15 | S55: 2024-05-15 | T55: 2024-11-15 | U55: 2025-05-15 | V55: 2025-11-17 | W55: 2026-05-15 | X55: 2026-11-16 | Y55: 2027-05-17 | Z55: 2027-11-15 | AA55: 2028-05-15 | AB55: 2028-11-15 | AC55: 2029-05-15 | AD55: 2029-11-15 | AE55: 2030-05-15
A56: AI: | B56: =R24*(D48-I55)/(K55-I55) -> 0.001726519337 | C56: If the ccytm is: | D56: =0.0065+G54 -> 0.006817 | E56: =0.0075+G54 -> 0.007817 | F56: =0.0085+G54 -> 0.008817 | G56: =G54+0.0095 -> 0.009817 | H56: =0.0105+G54 -> 0.010817 | L56: T: | M56: =(M55-$D$48)/365.25 -> 0.4982888433 | N56: =(N55-$D$48)/365.25 -> 0.9965776865 | O56: 1.49486653 | P56: 1.995893224 | Q56: 2.491444216 | R56: 2.995208761 | S56: 3.493497604 | T56: 3.997262149 | U56: 4.492813142 | V56: 5.002053388 | W56: 5.492128679 | X56: 5.998631075 | Y56: 6.496919918 | Z56: 6.995208761 | AA56: 7.493497604 | AB56: 7.997262149 | AC56: 8.492813142 | AD56: 8.996577687 | AE56: 9.492128679
D57: 99.47383693 | E57: 98.56002247 | F57: 97.65475578 | G57: 96.75795653 | H57: 95.86954511 | L57: df (@ytm): | M57: =EXP(-$G$56*M56) -> 0.9951202433 | N57: =EXP(-$G$56*N56) -> 0.9902642987 | O57: 0.9854320498 | P57: 0.9805970249 | Q57: 0.9758381777 | R57: 0.971024126 | S57: 0.9662857646 | T57: 0.9615188373 | U57: 0.9568525768 | V57: 0.9520810054 | W57: 0.9475114788 | X57: 0.9428118291 | Y57: 0.9382111367 | Z57: 0.9336328947 | AA57: 0.9290769933 | AB57: 0.9244936262 | AC57: 0.9200070494 | AD57: 0.9154684265 | AE57: 0.9110256491
L58: CF: | M58: =C29 -> 0.3125 | N58: =D29 -> 0.3125 | O58: 0.3125 | P58: 0.3125 | Q58: 0.3125 | R58: 0.3125 | S58: 0.3125 | T58: 0.3125 | U58: 0.3125 | V58: 0.3125 | W58: 0.3125 | X58: 0.3125 | Y58: 0.3125 | Z58: 0.3125 | AA58: 0.3125 | AB58: 0.3125 | AC58: 0.3125 | AD58: 0.3125 | AE58: 100.3125
L59: PV: | M59: =M57*M58 -> 0.310975076 | N59: =N57*N58 -> 0.3094575933 | O59: 0.3079475156 | P59: 0.3064365703 | Q59: 0.3049494305 | R59: 0.3034450394 | S59: 0.3019643014 | T59: 0.3004746367 | U59: 0.2990164303 | V59: 0.2975253142 | W59: 0.2960973371 | X59: 0.2946286966 | Y59: 0.2931909802 | Z59: 0.2917602796 | AA59: 0.2903365604 | AB59: 0.2889042582 | AC59: 0.2875022029 | AD59: 0.2860838833 | AE59: 91.38726042
L60: =SUM(M59:AE59) -> 96.75795653
C61: Profit on Note: | D61: =$B$42*(D57-$K$25)/100 -> 650,471.46 | E61: =$B$42*(E57-$K$25)/100 -> 193,564.22 | F61: (259,069.12) | G61: (707,468.75) | H61: (1,151,674.46) | L61: Remember that when we compute a note's value using the ytm, this is the cash value.
C62: Coupon: | D62: =$C$53 -> 312,500 | E62: =$C$53 -> 312,500 | F62: 312,500 | G62: 312,500 | H62: 312,500
C63: -Financing Cost: | D63: =$C$50+$C$51 -> 23,510.06 | E63: =$C$50+$C$51 -> 23,510.06 | F63: 23,510.06 | G63: 23,510.06 | H63: 23,510.06
C64: Profit on Long side: | D64: =D61+D62-D63 -> 939,461.39 | E64: =E61+E62-E63 -> 482,554.16 | F64: 29,920.82 | G64: (418,478.81) | H64: (862,684.52)
C66: YTM for buyer: | D66: =D56-2*$G$54 -> 0.006183 | E66: =E56-2*$G$54 -> 0.007183 | F66: 0.008183 | G66: 0.009183 | H66: 0.010183
A68: Sell the O-the-run note short.
A69: Proceeds from short sale: | C69: =B42*C12/100 -> 49,539,572.01
A70: Place cash proceeds with repo dealer as loan collateral (You are lending this cash -- the securities lender uses the note as collateral for this loan).
A71: Specialness: | B71: 180 bps | C71: 0.018
A72: Earn on cash collateral: | C72: =E44-C71 -> -0.0165
A73: Repo: | C73: =(1+G44)*C69 -> 50,034,967.73 | D73: The security lender requires that we post the full cash received from selling the security plus the haircut in our repo account.
A74: Tie-up Firm Capital: | C74: =C73-C69 -> 495,395.72 | D74: This ``margin account'' would be makrked to market on a dally basis. | L74: ytm: | M74: =H66 -> 0.010183
A75: Purchase the August 2030 note: | L75: =A15 -> Date: | M75: =B15 -> 2021-02-16 | N75: =C15 -> 2021-08-16 | O75: 2022-02-15 | P75: 2022-08-15 | Q75: 2023-02-15 | R75: 2023-08-15 | S75: 2024-02-15 | T75: 2024-08-15 | U75: 2025-02-18 | V75: 2025-08-15 | W75: 2026-02-17 | X75: 2026-08-17 | Y75: 2027-02-16 | Z75: 2027-08-16 | AA75: 2028-02-15 | AB75: 2028-08-15 | AC75: 2029-02-15 | AD75: 2029-08-15 | AE75: 2030-02-15 | AF75: =U15 -> 2030-08-15
D76: 100.213956 | E76: 99.2711015 | F76: 98.337297 | G76: 97.41245519 | H76: 96.4964896 | L76: =A16 -> T (Yrs): | M76: =(M75-$D$48)/365.25 -> 0.2518822724 | N76: =(N75-$D$48)/365.25 -> 0.7474332649 | O76: 1.248459959 | P76: 1.744010951 | Q76: 2.247775496 | R76: 2.743326489 | S76: 3.247091034 | T76: 3.745379877 | U76: 4.257357974 | V76: 4.744695414 | W76: 5.253935661 | X76: 5.749486653 | Y76: 6.250513347 | Z76: 6.746064339 | AA76: 7.247091034 | AB76: 7.745379877 | AC76: 8.249144422 | AD76: 8.744695414 | AE76: =(AE75-$D$48)/365.25 -> 9.248459959 | AF76: =(AF75-$D$48)/365.25 -> 9.744010951
L77: =A17 -> Cash Flow: | M77: =B17 -> 0.312500 | N77: =C17 -> 0.312500 | O77: 0.312500 | P77: 0.312500 | Q77: 0.312500 | R77: 0.312500 | S77: 0.312500 | T77: 0.312500 | U77: 0.312500 | V77: 0.312500 | W77: 0.312500 | X77: 0.312500 | Y77: 0.312500 | Z77: 0.312500 | AA77: 0.312500 | AB77: 0.312500 | AC77: 0.312500 | AD77: 0.312500 | AE77: 0.312500 | AF77: 100.312500
C78: Profit on Note: | D78: =$B$42*($C$12-D76)/100 -> (567,405.99) | E78: =$B$42*($C$12-E76)/100 -> (95,978.74) | F78: 370,923.51 | G78: 833,344.42 | H78: 1,291,327.21 | L78: =A18 -> df (@ytm): | M78: =EXP(-$M$74*M76) -> 0.9974383694 | N78: =EXP(-$M$74*N76) -> 0.9924177782 | O78: 0.9873674019 | P78: 0.9823975028 | Q78: 0.9773708703 | R78: 0.9724512886 | S78: 0.9674755478 | T78: 0.9625789374 | U78: 0.957573617 | V78: 0.9528333748 | W78: 0.9479051572 | X78: 0.9431338908 | Y78: 0.9383343183 | Z78: 0.9336112265 | AA78: 0.9288601144 | AB78: 0.9241589454 | AC78: 0.9194303021 | AD78: 0.9148023633 | AE78: 0.9101215948 | AF78: 0.9055405113
C79: Repo Interest: | D79: =C73*C72/360*G48 -> (169,701.93) | E79: =D79 -> (169,701.93) | F79: =E79 -> (169,701.93) | G79: (169,701.93) | H79: (169,701.93) | L79: PV: | M79: =M77*M78 -> 0.3116994904 | N79: =N77*N78 -> 0.3101305557 | O79: 0.3085523131 | P79: 0.3069992196 | Q79: 0.305428397 | R79: 0.3038910277 | S79: 0.3023361087 | T79: 0.3008059179 | U79: 0.2992417553 | V79: 0.2977604296 | W79: 0.2962203616 | X79: 0.2947293409 | Y79: 0.2932294745 | Z79: 0.2917535083 | AA79: 0.2902687858 | AB79: 0.2887996704 | AC79: 0.2873219694 | AD79: 0.2858757385 | AE79: 0.2844129984 | AF79: 90.83703254
C80: Cost of Firm Capital: | D80: =C74*(EXP(G48/365.25*K44)-1) -> 8,605.13 | E80: =D80 -> 8,605.13 | F80: 8,605.13 | G80: 8,605.13 | H80: 8,605.13 | L80: =SUM(M79:AF79) -> 96.4964896
C81: Profit on Short Side: | D81: =D78+D79-D80 -> (745,713.05) | E81: =E78+E79-E80 -> (274,285.80) | F81: 192,616.45 | G81: 655,037.35 | H81: 1,113,020.15
C84: Net Profit: | D84: =D64+D81 -> 193,748.34 | E84: =E64+E81 -> 208,268.36 | F84: 222,537.27 | G84: 236,558.55 | H84: 250,335.63
B88: Sensitivity Checks:
C89: 1) Transactions costs: A 1-tick spread does not destroy profitability.
C90: 2) Partial Covergence | D90: 12 bps to 6 bps | E90: We are sill profitable in all cases, but reduced.
